fUST/lending_fUST_20240624
["ID","MTS","AMOUNT","RATE_DAILY","PERIOD"]
[330250212,1719209439942,-291.22310209,0.00016749,2]
[330250213,1719209439957,-291.22310209,0.00016886,2]
[330250214,1719209439966,-500.0,0.00016986,2]
[330250215,1719209439976,-500.0,0.00016986,2]
[330250216,1719209439986,-500.0,0.00016986,2]
[330250217,1719209439997,-500.0,0.00016986,2]
[330250222,1719209440007,-500.0,0.00016986,2]
[330250225,1719209440016,-500.0,0.00016986,2]
[330250228,1719209440025,-526.0,0.00016986,2]
[330250231,1719209440039,-513.25,0.00016986,2]
[330250234,1719209440049,-500.0,0.00016986,2]
[330250237,1719209440058,-539.78,0.00016986,2]
[330250241,1719209440070,-617.7,0.00016986,2]
[330250244,1719209440079,-636.71,0.00016986,2]
[330250246,1719209440088,-500.0,0.00016986,2]
[330250250,1719209440098,-500.0,0.00016986,2]
[330250253,1719209440109,-1367.73,0.00016986,2]
[330250256,1719209440118,-500.0,0.00016986,2]
[330250259,1719209440127,-500.0,0.00016986,2]
[330250262,1719209440137,-500.0,0.00016986,2]
[330250265,1719209440147,-500.0,0.00016986,2]
[330250266,1719209440156,-684.92,0.00016986,2]
[330250268,1719209440166,-822.52,0.00016986,2]
[330250270,1719209440175,-500.0,0.00016986,2]
[330250272,1719209440185,-500.0,0.00016986,2]
[330250274,1719209440194,-500.0,0.00016986,2]
[330250275,1719209440203,-521.58,0.00016986,2]
[330250276,1719209440213,-500.0,0.00016986,2]
[330250277,1719209440223,-169.2,0.00016986,2]
[330250278,1719209440232,-563.97753438,0.00016986,2]
[330250279,1719209440241,-500.0,0.00016986,2]
[330250280,1719209440250,-500.0,0.00016986,2]
[330250281,1719209440260,-500.0,0.00016986,2]
[330250282,1719209440269,-500.0,0.00016986,2]
[330250283,1719209440279,-500.0,0.00016986,2]
[330250284,1719209440288,-500.0,0.00016986,2]
[330250285,1719209440298,-16347.1,0.00016986,2]
[330250286,1719209440307,-500.0,0.00016986,2]
[330250287,1719209440318,-2547.78,0.00016986,2]
[330250288,1719209440326,-1342.12,0.00016986,2]
[330250289,1719209440336,-965.57,0.00016986,2]
[330250290,1719209440345,-500.0,0.00016986,2]
[330250291,1719209440355,-500.0,0.00016986,2]
[330250292,1719209440364,-3530.33,0.00016986,2]
[330250293,1719209440373,-660.23,0.00016986,2]
[330250294,1719209440383,-500.0,0.00016986,2]
[330250295,1719209440392,-574.62,0.00016986,2]
[330250296,1719209440401,-500.0,0.00016986,2]
[330250297,1719209440411,-574.9,0.00016986,2]
[330250298,1719209440420,-388.03093619,0.00016986,2]
[330250299,1719209440430,-3126.48,0.00016986,2]
[330250300,1719209440440,-500.0,0.00016986,2]
[330250301,1719209440449,-500.0,0.00016986,2]
[330250302,1719209440459,-500.0,0.00016986,2]
[330250303,1719209440468,-1670.32,0.00016986,2]
[330250304,1719209440478,-531.35,0.00016986,2]
[330250305,1719209440488,-500.0,0.00016986,2]
[330250306,1719209440497,-500.0,0.00016986,2]
[330250307,1719209440507,-500.0,0.00016986,2]
[330250308,1719209440516,-500.0,0.00016986,2]
[330250309,1719209440525,-526.11,0.00016986,2]
[330250310,1719209440534,-500.0,0.00016986,2]
[330250311,1719209440544,-1081.95,0.00016986,2]
[330250312,1719209440553,-500.0,0.00016986,2]
[330250313,1719209440563,-500.0,0.00016986,2]
[330250314,1719209440572,-500.0,0.00016986,2]
[330250315,1719209440581,-500.0,0.00016986,2]
[330250316,1719209440591,-1946.51,0.00016986,2]
[330250317,1719209440600,-500.0,0.00016986,2]
[330250318,1719209440609,-753.93,0.00016986,2]
[330250319,1719209440618,-9738.87,0.00016986,2]
[330250320,1719209440628,-2535.11,0.00016986,2]
[330250321,1719209440638,-1010.53,0.00016986,2]
[330250322,1719209440648,-500.0,0.00016986,2]
[330250323,1719209440658,-500.0,0.00016986,2]
[330250324,1719209440667,-2216.24,0.00016986,2]
[330250325,1719209440676,-1856.36501181,0.00016986,2]
[330250326,1719209440691,-4755.73498819,0.00016986,2]
[330250327,1719209440701,-553.32,0.00016986,2]
[330250328,1719209440710,-500.0,0.00016986,2]
[330250329,1719209440719,-40.89700578,0.00016986,2]
[330250330,1719209440731,-377.35956123,0.00016986,2]
[330250331,1719209440742,-81.74343299,0.00016986,2]
[330250332,1719209440751,-1371.07,0.00016986,2]
[330250333,1719209440761,-500.0,0.00016986,2]
[330250334,1719209440771,-650.12,0.00016986,2]
[330250335,1719209440781,-500.0,0.00016986,2]
[330250336,1719209440794,-500.0,0.00016986,2]
[330250337,1719209440804,-1000.0,0.00017,9]
[330250338,1719209440815,-2129.2320514,0.00017084,2]
[330250339,1719209440823,-723.78639686,0.00017209,2]
[330250340,1719209440832,-359.31034648,0.00017209,2]
[330250341,1719209440841,-500.0,0.0001726,2]
[330250342,1719209440850,-432.49673155,0.0001726,2]
[330250343,1719209440859,-500.0,0.0001726,2]
[330250344,1719209440868,-500.0,0.0001726,2]
[330250345,1719209440877,-500.0,0.0001726,2]
[330250346,1719209440887,-500.0,0.0001726,2]
[330250347,1719209440896,-526.0,0.0001726,2]
[330250348,1719209440905,-513.25,0.0001726,2]
[330250349,1719209440914,-500.0,0.0001726,2]
[330250350,1719209440923,-539.78,0.0001726,2]
[330250351,1719209440933,-617.7,0.0001726,2]
[330250352,1719209440953,-636.71,0.0001726,2]
[330250353,1719209440966,-500.0,0.0001726,2]
[330250354,1719209440976,-500.0,0.0001726,2]
[330250355,1719209440986,-1367.73,0.0001726,2]
[330250356,1719209440997,-221.44004338,0.0001726,2]
[330250357,1719209441007,-500.0,0.0001726,2]
[330250358,1719209441017,-500.0,0.0001726,2]
[330250359,1719209441026,-500.0,0.0001726,2]
[330250360,1719209441039,-38.47586992,0.0001726,2]
[330250396,1719209442322,-874.42,0.00016986,2]
[330250398,1719209442332,-1117.74863961,0.00017176,2]
[330250400,1719209442341,-2115.26284951,0.00017176,2]
[330250402,1719209442351,-1364.00876116,0.00017199,2]
[330250404,1719209442360,-646.44413008,0.0001726,2]
[330250406,1719209442369,-105.81561964,0.0001726,2]
[330250409,1719209442381,-359.50100004,0.0001726,2]
[330250417,1719209442647,-357.20338032,0.0001726,2]
[330250420,1719209442657,-500.0,0.0001726,2]
[330250422,1719209442666,-142.78999018,0.0001726,2]
[330250425,1719209442678,-354.59455097,0.0001726,2]
[330250428,1719209442692,-2.61545885,0.0001726,2]
[330250431,1719209442702,-500.0,0.0001726,2]
[330250435,1719209442711,-521.58,0.0001726,2]
[330250438,1719209442720,-500.0,0.0001726,2]
[330250441,1719209442729,-169.2,0.0001726,2]
[330250443,1719209442738,-500.0,0.0001726,2]
[330250445,1719209442747,-500.0,0.0001726,2]
[330250447,1719209442756,-500.0,0.0001726,2]
[330250449,1719209442766,-293.17299268,0.0001726,2]
[330250509,1719209443350,-206.82700732,0.0001726,2]
[330250511,1719209443360,-500.0,0.0001726,2]
[330250512,1719209443370,-500.0,0.0001726,2]
[330250513,1719209443379,-4809.97126349,0.0001726,2]
[330250515,1719209443391,-4955.14211757,0.0001726,2]
[330250517,1719209443402,-6581.98661894,0.0001726,2]
[330250519,1719209443412,-500.0,0.0001726,2]
[330250521,1719209443421,-2547.78,0.0001726,2]
[330250523,1719209443430,-1342.12,0.0001726,2]
[330250525,1719209443439,-965.57,0.0001726,2]
[330250527,1719209443449,-500.0,0.0001726,2]
[330250529,1719209443458,-500.0,0.0001726,2]
[330250530,1719209443468,-3530.33,0.0001726,2]
[330250531,1719209443477,-660.23,0.0001726,2]
[330250532,1719209443487,-500.0,0.0001726,2]
[330250533,1719209443496,-574.62,0.0001726,2]
[330250534,1719209443505,-500.0,0.0001726,2]
[330250535,1719209443514,-574.9,0.0001726,2]
[330250536,1719209443524,-3126.48,0.0001726,2]
[330250537,1719209443533,-500.0,0.0001726,2]
[330250538,1719209443542,-500.0,0.0001726,2]
[330250539,1719209443552,-500.0,0.0001726,2]
[330250540,1719209443561,-1670.32,0.0001726,2]
[330250541,1719209443574,-531.35,0.0001726,2]
[330250542,1719209443583,-500.0,0.0001726,2]
[330250543,1719209443593,-500.0,0.0001726,2]
[330250544,1719209443603,-500.0,0.0001726,2]
[330250545,1719209443612,-500.0,0.0001726,2]
[330250546,1719209443621,-526.11,0.0001726,2]
[330250547,1719209443631,-500.0,0.0001726,2]
[330250548,1719209443640,-1081.95,0.0001726,2]
[330250549,1719209443650,-500.0,0.0001726,2]
[330250550,1719209443659,-500.0,0.0001726,2]
[330250551,1719209443668,-500.0,0.0001726,2]
[330250552,1719209443677,-500.0,0.0001726,2]
[330250553,1719209443686,-1946.51,0.0001726,2]
[330250554,1719209443695,-500.0,0.0001726,2]
[330250555,1719209443704,-753.93,0.0001726,2]
[330250556,1719209443713,-4605.87258509,0.0001726,2]
[330250637,1719209450413,-4887.38900986,0.0001726,2]
[330250638,1719209450796,-245.60840505,0.0001726,2]
[330250639,1719209450805,-2535.11,0.0001726,2]
[330250640,1719209450815,-1010.53,0.0001726,2]
[330250641,1719209450826,-500.0,0.0001726,2]
[330250642,1719209450835,-500.0,0.0001726,2]
[330250643,1719209450844,-2184.93230137,0.0001726,2]
[330250644,1719209450855,-31.30769863,0.0001726,2]
[330250645,1719209450865,-3079.79230137,0.0001726,2]
[330250646,1719209450877,-636.5613204,0.0001726,2]
[330250647,1719209552670,1000.0,0.00016,8]
[330250650,1719209613028,3000.0,0.000225,30]
[330250653,1719209899472,-249.18400001,0.00015602,2]
[330250654,1719209899504,-264.1118477,0.00015966,2]
[330250655,1719209899534,-1771.47484869,0.00016338,2]
[330250656,1719209899563,-300.0,0.00016437,2]
[330250657,1719209899592,-500.0,0.00016438,2]
[330250658,1719209899625,-412.1938397,0.00016438,2]
[330250659,1719209899653,-500.0,0.00016438,2]
[330250660,1719209899681,-500.0,0.00016438,2]
[330250661,1719209899710,-500.0,0.00016438,2]
[330250662,1719209899739,-500.0,0.00016438,2]
[330250663,1719209899768,-500.0,0.00016438,2]
[330250664,1719209899794,-500.0,0.00016438,2]
[330250665,1719209899821,-500.0,0.00016438,2]
[330250666,1719209899846,-500.0,0.00016438,2]
[330250667,1719209899872,-1336.04,0.00016438,2]
[330250668,1719209899897,-513.92000846,0.00016438,2]
[330250669,1719209899923,-500.0,0.00016438,2]
[330250670,1719209899949,-500.0,0.00016438,2]
[330250671,1719209899975,-500.0,0.00016438,2]
[330250672,1719209900000,-500.0,0.00016438,2]
[330250673,1719209900026,-500.0,0.00016438,2]
[330250674,1719209900052,-1199.69,0.00016438,2]
[330250675,1719209900081,-278.88147707,0.00016438,2]
[330250676,1719209900110,-500.0,0.00016438,2]
[330250677,1719209900141,-502.61029711,0.00016438,2]
[330250678,1719209900169,-502.61686235,0.00016438,2]
[330250679,1719209900201,-765.12,0.00016438,2]
[330250680,1719209900229,-514.58432313,0.00016438,2]
[330250681,1719209900256,-570.77,0.00016438,2]
[330250682,1719209900283,-505.25345172,0.00016438,2]
[330250683,1719209900311,-501.30393583,0.00016438,2]
[330250684,1719209900339,-503.33637323,0.00016438,2]
[330250685,1719209900366,-685.44,0.00016438,2]
[330250686,1719209900391,-527.57524292,0.00016438,2]
[330250687,1719209900418,-500.0,0.00016438,2]
[330250688,1719209900445,-517.78948587,0.00016438,2]
[330250689,1719209900471,-506.85016674,0.00016438,2]
[330250690,1719209900503,-500.0,0.00016438,2]
[330250691,1719209900529,-503.73236513,0.00016438,2]
[330250692,1719209900556,-504.07959165,0.00016438,2]
[330250693,1719209900582,-500.0,0.00016438,2]
[330250694,1719209900609,-2123.15,0.00016438,2]
[330250695,1719209900637,-13622.58,0.00016438,2]
[330250696,1719209900662,-506.11418577,0.00016438,2]
[330250697,1719209900690,-500.0,0.00016438,2]
[330250698,1719209900721,-535.26156274,0.00016438,2]
[330250699,1719209900748,-804.64,0.00016438,2]
[330250700,1719209900774,-500.0,0.00016438,2]
[330250701,1719209900801,-500.0,0.00016438,2]
[330250702,1719209900827,-1118.44,0.00016438,2]
[330250703,1719209900855,-2941.94,0.00016438,2]
[330250704,1719209900883,-9774.41,0.00016438,2]
[330250705,1719209900908,-2514.25,0.00016438,2]
[330250706,1719209900934,-500.0,0.00016438,2]
[330250707,1719209900961,-500.0,0.00016438,2]
[330250708,1719209900988,-550.19,0.00016438,2]
[330250709,1719209901121,-500.0,0.00016438,2]
[330250710,1719209901180,-500.0,0.00016438,2]
[330250711,1719209901214,-500.0,0.00016438,2]
[330250712,1719209901242,-2605.4,0.00016438,2]
[330250713,1719209901271,-500.0,0.00016438,2]
[330250714,1719209901300,-500.0,0.00016438,2]
[330250715,1719209901328,-500.0,0.00016438,2]
[330250716,1719209901356,-901.62,0.00016438,2]
[330250717,1719209901384,-500.0,0.00016438,2]
[330250718,1719209901412,-500.0,0.00016438,2]
[330250719,1719209901440,-1622.09,0.00016438,2]
[330250720,1719209901471,-8115.72,0.00016438,2]
[330250721,1719209901497,-500.0,0.00016438,2]
[330250722,1719209901522,-1391.93,0.00016438,2]
[330250723,1719209901550,-617.2604296,0.00016438,2]
[330250724,1719209901576,-530.59,0.00016438,2]
[330250725,1719209901602,-500.0,0.00016438,2]
[330250726,1719209901629,-500.0,0.00016438,2]
[330250727,1719209901655,-500.0,0.00016438,2]
[330250728,1719209901682,-500.0,0.00016438,2]
[330250729,1719209901711,-505.11965222,0.00016438,2]
[330250730,1719209901737,-500.0,0.00016438,2]
[330250731,1719209901763,-628.27,0.00016438,2]
[330250732,1719209901790,-500.0,0.00016438,2]
[330250733,1719209901817,-500.0,0.00016438,2]
[330250734,1719209901844,-500.0,0.00016438,2]
[330250735,1719209901871,-2112.59,0.00016438,2]
[330250736,1719209901898,-500.0,0.00016438,2]
[330250737,1719209901924,-302.70250165,0.00016438,2]
[330250738,1719209901952,-500.0,0.00016438,2]
[330250739,1719209901979,-1846.86,0.00016438,2]
[330250740,1719209902004,-505.0900718,0.00016438,2]
[330250741,1719209902029,-505.45336454,0.00016438,2]
[330250742,1719209902054,-500.0,0.00016438,2]
[330250743,1719209902078,-500.0,0.00016438,2]
[330250744,1719209902103,-500.0,0.00016438,2]
[330250745,1719209902131,-508.07531729,0.00016438,2]
[330250746,1719209902158,-5630.73,0.00016438,2]
[330250747,1719209902185,-500.0,0.00016438,2]
[330250748,1719209902213,-500.0,0.00016438,2]
[330250749,1719209902239,-500.0,0.00016438,2]
[330250750,1719209902266,-508.54715155,0.00016438,2]
[330250751,1719209902294,-568.86,0.00016438,2]
[330250752,1719209902322,-500.0,0.00016438,2]
[330250753,1719209902351,-500.0,0.00016712,2]
[330250754,1719209902379,-500.0,0.00016712,2]
[330250755,1719209902408,-500.0,0.00016712,2]
[330250756,1719209902436,-500.0,0.00016712,2]
[330250757,1719209902466,-500.0,0.00016712,2]
[330250758,1719209902498,-500.0,0.00016712,2]
[330250759,1719209902524,-500.0,0.00016712,2]
[330250760,1719209902550,-1336.04,0.00016712,2]
[330250761,1719209902576,-1199.69,0.00016712,2]
[330250762,1719209902602,-765.12,0.00016712,2]
[330250763,1719209902627,-570.77,0.00016712,2]
[330250764,1719209902653,-685.44,0.00016712,2]
[330250765,1719209902679,-500.0,0.00016712,2]
[330250766,1719209902708,-2123.15,0.00016712,2]
[330250767,1719209902734,-13622.58,0.00016712,2]
[330250768,1719209902759,-500.0,0.00016712,2]
[330250769,1719209902785,-804.64,0.00016712,2]
[330250770,1719209902812,-500.0,0.00016712,2]
[330250771,1719209902839,-500.0,0.00016712,2]
[330250772,1719209902866,-1118.44,0.00016712,2]
[330250773,1719209902894,-2941.94,0.00016712,2]
[330250774,1719209902922,-9774.41,0.00016712,2]
[330250775,1719209902950,-2514.25,0.00016712,2]
[330250776,1719209902976,-500.0,0.00016712,2]
[330250777,1719209903002,-500.0,0.00016712,2]
[330250778,1719209903027,-550.19,0.00016712,2]
[330250779,1719209903054,-500.0,0.00016712,2]
[330250780,1719209903079,-500.0,0.00016712,2]
[330250781,1719209903104,-500.0,0.00016712,2]
[330250782,1719209903132,-2605.4,0.00016712,2]
[330250783,1719209903158,-500.0,0.00016712,2]
[330250784,1719209903185,-500.0,0.00016712,2]
[330250785,1719209903216,-500.0,0.00016712,2]
[330250786,1719209903242,-901.62,0.00016712,2]
[330250787,1719209903270,-500.0,0.00016712,2]
[330250788,1719209903300,-500.0,0.00016712,2]
[330250789,1719209903327,-1622.09,0.00016712,2]
[330250790,1719209903354,-8115.72,0.00016712,2]
[330250791,1719209903381,-500.0,0.00016712,2]
[330250792,1719209903409,-1391.93,0.00016712,2]
[330250793,1719209903435,-530.59,0.00016712,2]
[330250794,1719209903465,-500.0,0.00016712,2]
[330250795,1719209903496,-500.0,0.00016712,2]
[330250796,1719209903647,-500.0,0.00016712,2]
[330250797,1719209903676,-500.0,0.00016712,2]
[330250798,1719209903708,-500.0,0.00016712,2]
[330250799,1719209903734,-628.27,0.00016712,2]
[330250800,1719209903761,-500.0,0.00016712,2]
[330250801,1719209903787,-500.0,0.00016712,2]
[330250802,1719209903813,-500.0,0.00016712,2]
[330250803,1719209903839,-2112.59,0.00016712,2]
[330250804,1719209903865,-500.0,0.00016712,2]
[330250805,1719209903891,-500.0,0.00016712,2]
[330250806,1719209903918,-1846.86,0.00016712,2]
[330250807,1719209903944,-500.0,0.00016712,2]
[330250808,1719209903974,-500.0,0.00016712,2]
[330250809,1719209904003,-5630.73,0.00016712,2]
[330250810,1719209904031,-500.0,0.00016712,2]
[330250811,1719209904058,-500.0,0.00016712,2]
[330250812,1719209904086,-500.0,0.00016712,2]
[330250813,1719209904116,-568.86,0.00016712,2]
[330250814,1719209904150,-500.0,0.00016712,2]
[330250815,1719209904180,-876.0,0.00016794,2]
[330250816,1719209904212,-2129.2320514,0.00016932,2]
[330250817,1719209904248,-1117.74863961,0.00016948,2]
[330250818,1719209904279,-500.0,0.00016986,2]
[330250819,1719209904309,-500.0,0.00016986,2]
[330250820,1719209904338,-500.0,0.00016986,2]
[330250821,1719209904371,-500.0,0.00016986,2]
[330250822,1719209904400,-500.0,0.00016986,2]
[330250823,1719209904435,-500.0,0.00016986,2]
[330250824,1719209904464,-500.0,0.00016986,2]
[330250825,1719209904490,-1336.04,0.00016986,2]
[330250826,1719209904518,-1199.69,0.00016986,2]
[330250827,1719209904547,-765.12,0.00016986,2]
[330250828,1719209904576,-570.77,0.00016986,2]
[330250829,1719209904605,-685.44,0.00016986,2]
[330250830,1719209904633,-500.0,0.00016986,2]
[330250831,1719209904662,-2123.15,0.00016986,2]
[330250832,1719209904690,-13622.58,0.00016986,2]
[330250833,1719209904723,-500.0,0.00016986,2]
[330250834,1719209904753,-804.64,0.00016986,2]
[330250835,1719209904783,-500.0,0.00016986,2]
[330250836,1719209904811,-500.0,0.00016986,2]
[330250837,1719209904840,-1118.44,0.00016986,2]
[330250838,1719209904869,-2941.94,0.00016986,2]
[330250839,1719209904901,-9774.41,0.00016986,2]
[330250840,1719209904931,-2514.25,0.00016986,2]
[330250841,1719209904967,-500.0,0.00016986,2]
[330250842,1719209904997,-500.0,0.00016986,2]
[330250843,1719209905028,-550.19,0.00016986,2]
[330250844,1719209905058,-500.0,0.00016986,2]
[330250845,1719209905087,-500.0,0.00016986,2]
[330250846,1719209905113,-500.0,0.00016986,2]
[330250847,1719209905146,-2605.4,0.00016986,2]
[330250848,1719209905172,-500.0,0.00016986,2]
[330250849,1719209905202,-500.0,0.00016986,2]
[330250850,1719209905228,-500.0,0.00016986,2]
[330250851,1719209905253,-901.62,0.00016986,2]
[330250852,1719209905281,-500.0,0.00016986,2]
[330250853,1719209905308,-500.0,0.00016986,2]
[330250854,1719209905335,-1622.09,0.00016986,2]
[330250855,1719209905365,-8115.72,0.00016986,2]
[330250856,1719209905395,-500.0,0.00016986,2]
[330250857,1719209905424,-1391.93,0.00016986,2]
[330250858,1719209905457,-530.59,0.00016986,2]
[330250859,1719209905486,-500.0,0.00016986,2]
[330250860,1719209905516,-500.0,0.00016986,2]
[330250861,1719209905544,-500.0,0.00016986,2]
[330250862,1719209905573,-500.0,0.00016986,2]
[330250863,1719209905602,-500.0,0.00016986,2]
[330250864,1719209905636,-628.27,0.00016986,2]
[330250865,1719209905665,-500.0,0.00016986,2]
[330250866,1719209905698,-500.0,0.00016986,2]
[330250867,1719209905729,-500.0,0.00016986,2]
[330250868,1719209905757,-274.72586268,0.00016986,2]
[330250869,1719209905786,-2112.59,0.00016986,2]
[330250870,1719209905814,-500.0,0.00016986,2]
[330250871,1719209905843,-1846.86,0.00016986,2]
[330250872,1719209905870,-500.0,0.00016986,2]
[330250873,1719209905899,-500.0,0.00016986,2]
[330250874,1719209905929,-5630.73,0.00016986,2]
[330250875,1719209905956,-500.0,0.00016986,2]
[330250876,1719209905988,-500.0,0.00016986,2]
[330250877,1719209906018,-500.0,0.00016986,2]
[330250878,1719209906047,-568.86,0.00016986,2]
[330250879,1719209906078,-500.0,0.00016986,2]
[330250880,1719209906108,-723.78639686,0.00016993,2]
[330250881,1719209906140,-1000.0,0.00017,9]
[330250882,1719209906284,-386.6830984,0.00017004,2]
[330250883,1719209906312,-244.84628686,0.00017081,2]
[330250884,1719209906338,-276.08930439,0.00017084,2]
[330250885,1719209906365,-457.45943987,0.00017259,2]
[330250886,1719209906394,-553.32,0.0001726,2]
[330250887,1719209906422,-500.0,0.0001726,2]
[330250888,1719209906451,-500.0,0.0001726,2]
[330250889,1719209906478,-500.0,0.0001726,2]
[330250890,1719209906509,-500.0,0.0001726,2]
[330250891,1719209906536,-500.0,0.0001726,2]
[330250892,1719209906565,-500.0,0.0001726,2]
[330250893,1719209906593,-500.0,0.0001726,2]
[330250894,1719209906620,-500.0,0.0001726,2]
[330250895,1719209906648,-193.14770692,0.0001726,2]
[330250896,1719209906675,-500.0,0.0001726,2]
[330250897,1719209906707,-1336.04,0.0001726,2]
[330250898,1719209906734,-1199.69,0.0001726,2]
[330250899,1719209906761,-765.12,0.0001726,2]
[330250900,1719209906789,-570.77,0.0001726,2]
[330250901,1719209906816,-685.44,0.0001726,2]
[330250902,1719209906842,-500.0,0.0001726,2]
[330250903,1719209906870,-2123.15,0.0001726,2]
[330250904,1719209906897,-13622.58,0.0001726,2]
[330250905,1719209906923,-500.0,0.0001726,2]
[330250906,1719209906954,-804.64,0.0001726,2]
[330250907,1719209906980,-500.0,0.0001726,2]
[330250908,1719209907006,-500.0,0.0001726,2]
[330250909,1719209907032,-1118.44,0.0001726,2]
[330250910,1719209907059,-2941.94,0.0001726,2]
[330250911,1719209907086,-9774.41,0.0001726,2]
[330250912,1719209907112,-2514.25,0.0001726,2]
[330250913,1719209907146,-500.0,0.0001726,2]
[330250914,1719209907175,-500.0,0.0001726,2]
[330250915,1719209907204,-550.19,0.0001726,2]
[330250916,1719209907234,-500.0,0.0001726,2]
[330250917,1719209907262,-500.0,0.0001726,2]
[330250918,1719209907292,-500.0,0.0001726,2]
[330250919,1719209907321,-2605.4,0.0001726,2]
[330250920,1719209907351,-500.0,0.0001726,2]
[330250921,1719209907380,-500.0,0.0001726,2]
[330250922,1719209907410,-500.0,0.0001726,2]
[330250923,1719209907440,-901.62,0.0001726,2]
[330250924,1719209907472,-500.0,0.0001726,2]
[330250925,1719209907502,-596.24136514,0.0001726,2]
[330250926,1719209907532,-1622.09,0.0001726,2]
[330250927,1719209907563,-8115.72,0.0001726,2]
[330250928,1719209907592,-500.0,0.0001726,2]
[330250929,1719209907618,-1391.93,0.0001726,2]
[330250930,1719209907645,-530.59,0.0001726,2]
[330250931,1719209907673,-239.33434683,0.0001726,2]
[330250932,1719209907701,-500.0,0.0001726,2]
[330250933,1719209907728,-500.0,0.0001726,2]
[330250934,1719209907755,-500.0,0.0001726,2]
[330250935,1719209907782,-500.0,0.0001726,2]
[330250936,1719209907809,-628.27,0.0001726,2]
[330250937,1719209907835,-500.0,0.0001726,2]
[330250938,1719209907864,-500.0,0.0001726,2]
[330250939,1719209907892,-500.0,0.0001726,2]
[330250940,1719209907923,-2112.59,0.0001726,2]
[330250941,1719209907953,-500.0,0.0001726,2]
[330250942,1719209907983,-1846.86,0.0001726,2]
[330250943,1719209908014,-500.0,0.0001726,2]
[330250944,1719209908042,-500.0,0.0001726,2]
[330250945,1719209908071,-5630.73,0.0001726,2]
[330250946,1719209908099,-500.0,0.0001726,2]
[330250947,1719209908130,-500.0,0.0001726,2]
[330250948,1719209908157,-500.0,0.0001726,2]
[330250949,1719209908186,-568.86,0.0001726,2]
[330250950,1719209908215,-161.35474144,0.0001726,2]
[330250951,1719209908242,-9601.79213166,0.00017499,2]
[330250952,1719209908270,-9601.79213166,0.00017533,2]
[330250953,1719209908297,-10562.28786365,0.00017533,2]
[330250954,1719209908325,-500.0,0.00017534,2]
[330250955,1719209908353,-500.0,0.00017534,2]
[330250956,1719209908383,-500.0,0.00017534,2]
[330250957,1719209908411,-500.0,0.00017534,2]
[330250958,1719209908438,-500.0,0.00017534,2]
[330250959,1719209908468,-500.0,0.00017534,2]
[330250960,1719209908495,-526.11,0.00017534,2]
[330250961,1719209908522,-500.0,0.00017534,2]
[330250962,1719209908549,-500.0,0.00017534,2]
[330250963,1719209908575,-305.84850322,0.00017534,2]
[330250964,1719209908603,-1010.53,0.00017534,2]
[330250965,1719209908631,-500.0,0.00017534,2]
[330250966,1719209908658,-553.32,0.00017534,2]
[330250967,1719209908687,-500.0,0.00017534,2]
[330250968,1719209908716,-500.0,0.00017534,2]
[330250969,1719209908863,-500.0,0.00017534,2]